Workbook

Sheet Sheet1
A1: Seven 7-T coils
A3: L (cm) | B3: Bx (T) | D3: 100 nm particle
A4: -10 | B4: 0.28066823 | C4: dB/dx | D4: Force | E4: Force/weight
A5: -9.8999996 | B5: 0.28178573 | C5: =(B5-B4)/ABS(A5-A4)*100 -> 1.11749553 | D5: =B5*C5*0.0000000000000012 -> 3.778731524e-16 | E5: =D5/weight -> 8.265866759
A6: -9.8000002 | B6: 0.28290322 | C6: =(B6-B5)/ABS(A6-A5)*100 -> 1.117496705 | D6: =B6*C6*0.0000000000000012 -> 3.793720994e-16 | E6: =D6/weight -> 8.298655794
A7: -9.6999998 | B7: 0.28395787 | C7: 1.054645781 | D7: 3.593699636e-16 | E7: =D7/weight -> 7.861114814
A8: -9.6000004 | B8: 0.2849685 | C8: 1.010636064 | D8: 3.455993318e-16 | E8: =D8/weight -> 7.559886195
A9: -9.5 | B9: 0.28597817 | C9: 1.009665961 | D9: 3.464909087e-16 | E9: =D9/weight -> 7.579389185
A10: -9.3999996 | B10: 0.28698441 | C10: 1.006235975 | D10: 3.465288451e-16 | E10: =D10/weight -> 7.580219033
A11: -9.3000002 | B11: 0.28799066 | C11: 1.006256038 | D11: 3.477508085e-16 | E11: =D11/weight -> 7.60694913
A12: -9.1999998 | B12: 0.28898787 | C12: 0.9972060112 | D12: 3.458165293e-16 | E12: =D12/weight -> 7.564637329
A13: -9.1000004 | B13: 0.28998414 | C13: 0.9962759777 | D13: 3.466850791e-16 | E13: =D13/weight -> 7.583636606
A14: -9 | B14: 0.29103509 | C14: 1.050945796 | D14: 3.670345253e-16 | E14: =D14/weight -> 8.0287749
A15: -8.8999996 | B15: 0.29211846 | C15: 1.083365667 | D15: 3.797653322e-16 | E15: =D15/weight -> 8.307257647
A16: -8.8000002 | B16: 0.29317167 | C16: 1.053216319 | D16: 3.705278246e-16 | E16: =D16/weight -> 8.105189822
A17: -8.6999998 | B17: 0.29417896 | C17: 1.007285971 | D17: 3.555868072e-16 | E17: =D17/weight -> 7.778359353
A18: -8.6000004 | B18: 0.29519942 | C18: 1.020466123 | D18: 3.614892091e-16 | E18: =D18/weight -> 7.907472701
A19: -8.5 | B19: 0.29627046 | C19: 1.071035716 | D19: 3.807794931e-16 | E19: =D19/weight -> 8.329442126
A20: -8.3999996 | B20: 0.29734144 | C20: 1.070975716 | D20: 3.82134554e-16 | E20: =D20/weight -> 8.359083694
A21: -8.3000002 | B21: 0.29841194 | C21: 1.070506423 | D21: 3.833422782e-16 | E21: =D21/weight -> 8.385502315
A22: -8.1999998 | B22: 0.29948241 | C22: 1.070465718 | D22: 3.847027837e-16 | E22: =D22/weight -> 8.415262983
A23: -8.1000004 | B23: 0.30055365 | C23: 1.071246427 | D23: 3.863604286e-16 | E23: =D23/weight -> 8.451523489
A24: -8 | B24: 0.30162489 | C24: 1.071235715 | D24: 3.877336257e-16 | E24: =D24/weight -> 8.481561781
A25: -7.9000001 | B25: 0.30271837 | C25: 1.093481093 | D25: 3.972201771e-16 | E25: =D25/weight -> 8.689077371
A26: -7.8000002 | B26: 0.30381459 | C26: 1.096221096 | D26: 3.996575555e-16 | E26: =D26/weight -> 8.742394323
A27: -7.6999998 | B27: 0.30492219 | C27: 1.10759557 | D27: 4.052765601e-16 | E27: =D27/weight -> 8.865308436
A28: -7.5999999 | B28: 0.30603155 | C28: 1.109361109 | D28: 4.073993998e-16 | E28: =D28/weight -> 8.911744945
A29: -7.5 | B29: 0.30713722 | C29: 1.105671106 | D29: 4.075112996e-16 | E29: =D29/weight -> 8.914192721
A30: -7.4000001 | B30: 0.30824238 | C30: 1.105161105 | D30: 4.087889872e-16 | E30: =D30/weight -> 8.942141772
A31: -7.3000002 | B31: 0.3093074 | C31: 1.065021065 | D31: 3.953026759e-16 | E31: =D31/weight -> 8.647132582
A32: -7.2017498 | B32: 0.31035078 | C32: 1.061960053 | D32: 3.95496157e-16 | E32: =D32/weight -> 8.651364925
A33: -7.0999999 | B33: 0.31161195 | C33: 1.239480334 | D33: 4.634842605e-16 | E33: =D33/weight -> 10.13858518
A34: -7 | B34: 0.31281927 | C34: 1.207321207 | D34: 4.532080065e-16 | E34: =D34/weight -> 9.91379507
A35: -6.9000001 | B35: 0.31383386 | C35: 1.014591015 | D35: 3.820956173e-16 | E35: =D35/weight -> 8.358231966
A36: -6.8000002 | B36: 0.3148903 | C36: 1.056441056 | D36: 3.991956494e-16 | E36: =D36/weight -> 8.732290261
A37: -6.6999998 | B37: 0.31604233 | C37: 1.152025392 | D37: 4.369065469e-16 | E37: =D37/weight -> 9.55720532
A38: -6.5999999 | B38: 0.31715992 | C38: 1.117591118 | D38: 4.253461313e-16 | E38: =D38/weight -> 9.304324548
A39: -6.5 | B39: 0.31824324 | C39: 1.083321083 | D39: 4.137115338e-16 | E39: =D39/weight -> 9.049821066
A40: -6.4000001 | B40: 0.31940126 | C40: 1.158021158 | D40: 4.438481004e-16 | E40: =D40/weight -> 9.70904981
A41: -6.2998013 | B41: 0.32058889 | C41: 1.185273676 | D41: 4.559826865e-16 | E41: =D41/weight -> 9.9744904
A42: -6.1999998 | B42: 0.32175016 | C42: 1.163579706 | D42: 4.492583478e-16 | E42: =D42/weight -> 9.82739742
A43: -6.0999999 | B43: 0.32292277 | C43: 1.172611173 | D43: 4.543954176e-16 | E43: =D43/weight -> 9.939769347
A44: -6 | B44: 0.32411668 | C44: 1.193911194 | D44: 4.643598389e-16 | E44: =D44/weight -> 10.1577382
A45: -5.9000001 | B45: 0.3252953 | C45: 1.178621179 | D45: 4.600799159e-16 | E45: =D45/weight -> 10.06411612
A46: -5.7991257 | B46: 0.32647508 | C46: 1.169553425 | D46: 4.581960575e-16 | E46: =D46/weight -> 10.02290726
A47: -5.6999998 | B47: 0.32765144 | C47: 1.186733235 | D47: 4.666018241e-16 | E47: =D47/weight -> 10.20678099
A48: -5.5999999 | B48: 0.32883945 | C48: 1.188011188 | D48: 4.687979348e-16 | E48: =D48/weight -> 10.25482028
A49: -5.5 | B49: 0.33002952 | C49: 1.19007119 | D49: 4.713103484e-16 | E49: =D49/weight -> 10.3097786
A50: -5.4000001 | B50: 0.33121994 | C50: 1.19042119 | D50: 4.731494823e-16 | E50: =D50/weight -> 10.35000913
A51: -5.2999997 | B51: 0.33239922 | C51: 1.179275283 | D51: 4.70388221e-16 | E51: =D51/weight -> 10.28960733
A52: -5.1999998 | B52: 0.33354783 | C52: 1.148611149 | D52: 4.597401074e-16 | E52: =D52/weight -> 10.0566829
A53: -5.0999999 | B53: 0.33475149 | C53: 1.203661204 | D53: 4.835128577e-16 | E53: =D53/weight -> 10.57670499
A54: -5 | B54: 0.33597729 | C54: 1.225801226 | D54: 4.942096487e-16 | E54: =D54/weight -> 10.81069423
A55: -4.9000001 | B55: 0.33721417 | C55: 1.236881237 | D55: 5.005126556e-16 | E55: =D55/weight -> 10.94857069
A56: -4.7999997 | B56: 0.33842993 | C56: 1.215755137 | D56: 4.937375111e-16 | E56: =D56/weight -> 10.80036635
A57: -4.6999998 | B57: 0.33963159 | C57: 1.201661202 | D57: 4.897465255e-16 | E57: =D57/weight -> 10.71306469
A58: -4.5999999 | B58: 0.34081841 | C58: 1.186821187 | D58: 4.853886118e-16 | E58: =D58/weight -> 10.61773658
A59: -4.5 | B59: 0.34204417 | C59: 1.225761226 | D59: 5.031173773e-16 | E59: =D59/weight -> 11.00554823
A60: -4.4000001 | B60: 0.3432934 | C60: 1.249231249 | D60: 5.146234115e-16 | E60: =D60/weight -> 11.25723943
A61: -4.2999997 | B61: 0.34454036 | C61: 1.246955012 | D61: 5.155515946e-16 | E61: =D61/weight -> 11.27754317
A62: -4.1999998 | B62: 0.3457379 | C62: 1.197541198 | D62: 4.968424546e-16 | E62: =D62/weight -> 10.8682861
A63: -4.0999999 | B63: 0.34708765 | C63: 1.34975135 | D63: 5.621784289e-16 | E63: =D63/weight -> 12.29749179
A64: -4 | B64: 0.34835491 | C64: 1.267261267 | D64: 5.297480216e-16 | E64: =D64/weight -> 11.58808593
A65: -3.8999999 | B65: 0.34958842 | C65: 1.233508766 | D65: 5.174644569e-16 | E65: =D65/weight -> 11.31938648
A66: -3.8 | B66: 0.35085508 | C66: 1.266661267 | D66: 5.332974481e-16 | E66: =D66/weight -> 11.66572862
A67: -3.6999998 | B67: 0.35211617 | C67: 1.261087478 | D67: 5.328591513e-16 | E67: =D67/weight -> 11.656141
A68: -3.5999999 | B68: 0.35338265 | C68: 1.266481266 | D68: 5.370630073e-16 | E68: =D68/weight -> 11.74809915
A69: -3.5 | B69: 0.35470033 | C69: 1.317681318 | D69: 5.608583979e-16 | E69: =D69/weight -> 12.26861649
A70: -3.3999999 | B70: 0.3559618 | C70: =(B70-B69)/ABS(A70-A69)*100 -> 1.261468739 | D70: =B70*C70*0.0000000000000012 -> 5.388416194e-16 | E70: =D70/weight -> 11.78700577
A71: -3.3 | B71: 0.35721341 | C71: 1.251611252 | D71: 5.365107878e-16 | E71: =D71/weight -> 11.7360195
A72: -3.1999998 | B72: 0.35854197 | C72: 1.328557343 | D72: 5.716122804e-16 | E72: =D72/weight -> 12.50385458
A73: -3.0999999 | B73: 0.35975745 | C73: 1.215481215 | D73: 5.247341071e-16 | E73: =D73/weight -> 11.47840799
A74: -3 | B74: 0.36104575 | C74: 1.288301288 | D74: 5.581628458e-16 | E74: =D74/weight -> 12.20965206
A75: -2.8999999 | B75: 0.36246479 | C75: 1.419038581 | D75: 6.172218255e-16 | E75: =D75/weight -> 13.50155029
A76: -2.8 | B76: 0.36370623 | C76: 1.241441241 | D76: 5.418238964e-16 | E76: =D76/weight -> 11.85224223
A77: -2.6999998 | B77: 0.36500838 | C77: 1.302147396 | D77: 5.703536537e-16 | E77: =D77/weight -> 12.47632248
A78: -2.5999999 | B78: 0.36633849 | C78: 1.33011133 | D78: 5.847251714e-16 | E78: =D78/weight -> 12.79069531
A79: -2.5 | B79: 0.36772177 | C79: 1.383281383 | D79: 6.103952144e-16 | E79: =D79/weight -> 13.35222013
A80: -2.3999999 | B80: 0.36907321 | C80: 1.351438649 | D80: 5.985357602e-16 | E80: =D80/weight -> 13.09279797
A81: -2.3 | B81: 0.37026322 | C81: 1.19001119 | D81: 5.287408501e-16 | E81: =D81/weight -> 11.56605435
A82: -2.1999998 | B82: 0.37169334 | C82: 1.43011714 | D82: 6.378780195e-16 | E82: =D82/weight -> 13.9533986
A83: -2.0999999 | B83: 0.37306768 | C83: 1.374341374 | D83: 6.152668177e-16 | E83: =D83/weight -> 13.45878505
A84: -1.9999999 | B84: 0.3743889 | C84: 1.32122 | D84: 5.935801229e-16 | E84: =D84/weight -> 12.98439483
A85: -1.8999999 | B85: 0.3757396 | C85: 1.3507 | D85: 6.090137733e-16 | E85: =D85/weight -> 13.3220015
A86: -1.7999998 | B86: 0.37711948 | C86: 1.37987862 | D86: 6.244549292e-16 | E86: =D86/weight -> 13.65977236
A87: -1.6999999 | B87: 0.37844977 | C87: =(B87-B86)/ABS(A87-A86)*100 -> 1.33029133 | D87: 6.041381376e-16 | E87: =D87/weight -> 13.21534837
A88: -1.5999999 | B88: 0.3799412 | C88: 1.49143 | D88: 6.799868447e-16 | E88: =D88/weight -> 14.87451707
A89: -1.4999999 | B89: 0.38129598 | C89: 1.35478 | D89: 6.198866013e-16 | E89: =D89/weight -> 13.5598415
A90: -1.3999999 | B90: 0.38262996 | C90: 1.33398 | D90: 6.125048568e-16 | E90: =D90/weight -> 13.39836795
A91: -1.2999998 | B91: 0.38396811 | C91: 1.338148662 | D91: 6.165676951e-16 | E91: =D91/weight -> 13.48724137
A92: -1.1999998 | B92: 0.38539895 | C92: 1.43084 | D92: 6.617330803e-16 | E92: =D92/weight -> 14.47522121
A93: -1.0999999 | B93: 0.38681284 | C93: 1.413891414 | D93: 6.562936239e-16 | E93: =D93/weight -> 14.35623467
A94: -1.0006126 | B94: 0.38816297 | C94: 1.358453243 | D94: 6.327614945e-16 | E94: =D94/weight -> 13.84147609
A95: -0.89999986 | B95: 0.38964736 | C95: 1.475349941 | D95: 6.898394514e-16 | E95: =D95/weight -> 15.09004001
A96: -0.79999983 | B96: 0.39097705 | C96: 1.329689601 | D96: 6.238537412e-16 | E96: =D96/weight -> 13.64662154
A97: -0.69999987 | B97: 0.39238548 | C97: 1.408430563 | D97: 6.631772432e-16 | E97: =D97/weight -> 14.50681186
A98: -0.59999985 | B98: 0.39380142 | C98: 1.415939717 | D98: 6.691188853e-16 | E98: =D98/weight -> 14.63678358
A99: -0.49999985 | B99: 0.39523631 | C99: 1.43489 | D99: 6.805447546e-16 | E99: =D99/weight -> 14.88672119
A100: -0.39999986 | B100: 0.39674094 | C100: 1.50463015 | D100: 7.163380563e-16 | E100: =D100/weight -> 15.66968939
A101: -0.29999986 | B101: 0.39814579 | C101: 1.40485 | D101: 6.712021357e-16 | E101: =D101/weight -> 14.68235408
A102: -0.19999985 | B102: 0.39958873 | C102: 1.442939856 | D102: 6.918990053e-16 | E102: =D102/weight -> 15.13509216
A103: -0.099999852 | B103: 0.40099791 | C103: 1.409180028 | D103: 6.780938953e-16 | E103: =D103/weight -> 14.83310935
A104: 0 | B104: 0.40248951 | C104: 1.491602208 | D104: 7.2042509e-16 | E104: =D104/weight -> 15.75909208
A105: 0.10000015 | B105: 0.4039509 | C105: 1.461387808 | D105: 7.083947043e-16 | E105: =D105/weight -> 15.49593085
A106: 0.20000015 | B106: 0.4054065 | C106: 1.4556 | D106: 7.081316417e-16 | E106: =D106/weight -> 15.49017643
A107: 0.30000016 | B107: 0.40686515 | C107: 1.458649854 | D107: 7.1216855e-16 | E107: =D107/weight -> 15.57848264
A108: 0.40000015 | B108: 0.40832451 | C108: 1.459360146 | D108: 7.150710198e-16 | E108: =D108/weight -> 15.64197333
A109: 0.50000018 | B109: 0.40983322 | C109: 1.508709547 | D109: 7.419831502e-16 | E109: =D109/weight -> 16.23066846
A110: 0.60000014 | B110: 0.41130629 | C110: 1.473070589 | D110: 7.270598388e-16 | E110: =D110/weight -> 15.9042253
A111: 0.70000017 | B111: 0.41277453 | C111: 1.46823956 | D111: 7.272622729e-16 | E111: =D111/weight -> 15.90865349
A112: 0.80000019 | B112: 0.41424739 | C112: 1.472859705 | D112: 7.321539466e-16 | E112: =D112/weight -> 16.01565745
A113: 0.90000015 | B113: 0.41582122 | C113: 1.57383063 | D113: 7.853186069e-16 | E113: =D113/weight -> 17.17861914
A114: 1.0000001 | B114: 0.41735223 | C114: 1.531010766 | D114: 7.667649086e-16 | E114: =D114/weight -> 16.77276231
A115: 1.1000001 | B115: 0.41889498 | C115: 1.54275 | D115: 7.755002765e-16 | E115: =D115/weight -> 16.96384598
A116: 1.2000002 | B116: 0.42029056 | C116: 1.395578604 | D116: 7.038582158e-16 | E116: =D116/weight -> 15.39669646
A117: 1.3000002 | B117: 0.42179021 | C117: 1.49965 | D117: 7.590452261e-16 | E117: =D117/weight -> 16.60389647
A118: 1.4000002 | B118: 0.42339802 | C118: 1.60781 | D118: 8.168922846e-16 | E118: =D118/weight -> 17.86928428
A119: 1.5000001 | B119: 0.42492434 | C119: 1.526321526 | D119: 7.782854006e-16 | E119: =D119/weight -> 17.02476977
A120: 1.6000001 | B120: 0.42643318 | C120: 1.50884 | D120: 7.721033272e-16 | E120: =D120/weight -> 16.88953869
A121: 1.7000002 | B121: 0.42794397 | C121: 1.510788489 | D121: 7.758393887e-16 | E121: =D121/weight -> 16.97126396
A122: 1.8000002 | B122: 0.42952374 | C122: 1.57977 | D122: 8.142584625e-16 | E122: =D122/weight -> 17.81167017
A123: 1.9000002 | B123: 0.43108255 | C123: 1.55881 | D123: 8.063709477e-16 | E123: =D123/weight -> 17.63913305
A124: 2.0002873 | B124: 0.432556 | C124: 1.469231835 | D124: 7.62630055e-16 | E124: =D124/weight -> 16.68231358
A125: 2.1000001 | B125: 0.4341248 | C125: 1.573318571 | D125: 8.196199319e-16 | E125: =D125/weight -> 17.92895078
A126: 2.2000003 | B126: 0.43577784 | C126: 1.653036694 | D126: 8.644281119e-16 | E126: =D126/weight -> 18.90911685
A127: 2.3000002 | B127: 0.43735355 | C127: 1.575711576 | D127: 8.269716617e-16 | E127: =D127/weight -> 18.08976776
A128: 2.4000001 | B128: 0.43892175 | C128: 1.568201568 | D128: 8.25981332e-16 | E128: =D128/weight -> 18.06810458
A129: 2.5000002 | B129: 0.44049725 | C129: 1.575498425 | D129: 8.32803268e-16 | E129: =D129/weight -> 18.21733247
A130: 2.6000001 | B130: 0.4420467 | C130: 1.549451549 | D130: 8.219159331e-16 | E130: =D130/weight -> 17.97917514
A131: 2.7000003 | B131: 0.44363052 | C131: 1.583816832 | D131: 8.431553819e-16 | E131: =D131/weight -> 18.44378199
A132: 2.8000002 | B132: 0.44524375 | C132: 1.613231613 | D132: 8.619375517e-16 | E132: =D132/weight -> 18.85463657
A133: 2.9000001 | B133: 0.44685835 | C133: 1.614601615 | D133: 8.657978561e-16 | E133: =D133/weight -> 18.93907962
A134: 3.0000002 | B134: 0.44849703 | C134: 1.638678361 | D134: =B134*C134*0.0000000000000012 -> 8.819308538e-16 | E134: =D134/weight -> 19.29198431
A135: 3.1000001 | B135: 0.45012668 | C135: 1.62965163 | D135: 8.802596131e-16 | E135: =D135/weight -> 19.2554264
A136: 3.2000003 | B136: 0.45172253 | C136: 1.595846808 | D136: 8.650559493e-16 | E136: =D136/weight -> 18.92285062
A137: 3.3000002 | B137: 0.45333686 | C137: 1.614331614 | D137: 8.7820323e-16 | E137: =D137/weight -> 19.21044361
A138: 3.4000001 | B138: 0.45496914 | C138: 1.632281632 | D138: 8.911653246e-16 | E138: =D138/weight -> 19.49398571
A139: 3.5000002 | B139: 0.45662907 | C139: 1.65992834 | D139: 9.09565841e-16 | E139: =D139/weight -> 19.89649172
A140: 3.6000001 | B140: 0.45828083 | C140: 1.651761652 | D140: 9.083648409e-16 | E140: =D140/weight -> 19.87022019
A141: 3.7000003 | B141: 0.45994756 | C141: 1.666726667 | D141: 9.199282362e-16 | E141: =D141/weight -> 20.12316614
A142: 3.8000002 | B142: 0.46156177 | C142: 1.614211614 | D142: 8.940700438e-16 | E142: =D142/weight -> 19.55752561
A143: 3.9000001 | B143: 0.46321166 | C143: 1.64989165 | D143: 9.1709886e-16 | E143: =D143/weight -> 20.06127435
A144: 4 | B144: 0.46489307 | C144: 1.681411681 | D144: 9.380119662e-16 | E144: =D144/weight -> 20.51874255
A145: 4.1000004 | B145: 0.46651605 | C145: 1.622973508 | D145: 9.085718283e-16 | E145: =D145/weight -> 19.87474798
A146: 4.2000003 | B146: 0.46821141 | C146: 1.695361695 | D146: 9.525452278e-16 | E146: =D146/weight -> 20.83665348
A147: 4.3000002 | B147: 0.46991906 | C147: 1.707651708 | D147: 9.629497023e-16 | E147: =D147/weight -> 21.06424837
A148: 4.4000001 | B148: 0.47164121 | C148: 1.722151722 | D148: 9.746852664e-16 | E148: =D148/weight -> 21.32096047
A149: 4.5 | B149: 0.47333971 | C149: 1.698501699 | D149: 9.647619617e-16 | E149: =D149/weight -> 21.10389102
A150: 4.6000004 | B150: 0.47489154 | C150: 1.551823793 | D150: 8.843375889e-16 | E150: =D150/weight -> 19.34463095
A151: 4.7000003 | B151: 0.47667009 | C151: =(B151-B150)/ABS(A151-A150)*100 -> 1.778551779 | D151: 1.017338924e-15 | E151: =D151/weight -> 22.25399698
A152: 4.8000002 | B152: 0.47841009 | C152: 1.74000174 | D152: 9.989212668e-16 | E152: =D152/weight -> 21.85111602
A153: 4.9000001 | B153: 0.48007259 | C153: 1.662501663 | D153: 9.577457748e-16 | E153: =D153/weight -> 20.95041395
A154: 5 | B154: 0.48172727 | C154: 1.654681655 | D154: 9.565263315e-16 | E154: =D154/weight -> 20.92373898
A155: 5.1000004 | B155: 0.48341262 | C155: 1.685343259 | D155: 9.776594403e-16 | E155: =D155/weight -> 21.38601967
A156: 5.2000003 | B156: 0.48514047 | C156: 1.727851728 | D156: 1.005900959e-15 | E156: =D156/weight -> 22.00379479
A157: 5.3000002 | B157: 0.48694876 | C157: 1.808291808 | D157: 1.056654545e-15 | E157: =D157/weight -> 23.1140149
A158: 5.4000001 | B158: 0.4887459 | C158: 1.797141797 | D158: 1.054014822e-15 | E158: =D158/weight -> 23.05627173
A159: 5.5 | B159: 0.49049526 | C159: 1.749361749 | D159: 1.029664375e-15 | E159: =D159/weight -> 22.52361269
A160: 5.6000004 | B160: 0.49214789 | C160: 1.65262339 | D160: 9.760021369e-16 | E160: =D160/weight -> 21.34976663
A161: 5.7000003 | B161: 0.49392781 | C161: 1.77992178 | D161: 1.05498344e-15 | E161: =D161/weight -> 23.07745997
A162: 5.8000002 | B162: 0.49574298 | C162: 1.815171815 | D162: 1.079830422e-15 | E162: =D162/weight -> 23.62098056
A163: 5.9000001 | B163: 0.49756896 | C163: 1.825981826 | D163: 1.090262254e-15 | E163: =D163/weight -> 23.84917389
A164: 6 | B164: 0.49932927 | C164: 1.76031176 | D164: 1.054770223e-15 | E164: =D164/weight -> 23.07279592
A165: 6.1000004 | B165: 0.5010621 | C165: 1.732823069 | D165: 1.041902359e-15 | E165: =D165/weight -> 22.79131507
A166: 6.2000003 | B166: 0.50283015 | C166: 1.768051768 | D166: 1.066835683e-15 | E166: =D166/weight -> 23.33672438
A167: 6.3000002 | B167: 0.50460547 | C167: 1.775321775 | D167: 1.075004495e-15 | E167: =D167/weight -> 23.51541479
A168: 6.4000001 | B168: 0.5063898 | C168: 1.784331784 | D168: 1.084280898e-15 | E168: =D168/weight -> 23.71833346
A169: 6.5000005 | B169: 0.50819671 | C169: 1.806902772 | D169: 1.101914453e-15 | E169: =D169/weight -> 24.10406241
A170: 6.6000004 | B170: 0.51000857 | C170: 1.811861812 | D170: 1.108878062e-15 | E170: =D170/weight -> 24.25638936
A171: 6.7000003 | B171: 0.51180845 | C171: 1.7998818 | D171: 1.105433657e-15 | E171: =D171/weight -> 24.18104399
A172: 6.8000002 | B172: 0.51361763 | C172: 1.809181809 | D172: 1.115073208e-15 | E172: =D172/weight -> 24.39190639
A173: 6.9000001 | B173: 0.51544297 | C173: 1.825341825 | D173: 1.129031534e-15 | E173: =D173/weight -> 24.69724077
A174: 7.0000005 | B174: 0.51728398 | C174: 1.841002636 | D174: 1.142785405e-15 | E174: =D174/weight -> 24.99810275
A175: 7.1000004 | B175: 0.51913494 | C175: 1.850961851 | D175: 1.153078763e-15 | E175: =D175/weight -> 25.22326701
A176: 7.2000003 | B176: 0.52093941 | C176: 1.804471804 | D176: 1.128024573e-15 | E176: =D176/weight -> 24.67521378
A177: 7.3001308 | B177: 0.52273607 | C177: 1.794318414 | D177: 1.125545948e-15 | E177: =D177/weight -> 24.62099457
A178: 7.4000001 | B178: 0.52463746 | C178: 1.903878369 | D178: 1.198615094e-15 | E178: =D178/weight -> 26.21936118
A179: 7.5000005 | B179: 0.52650505 | C179: 1.86758253 | D179: 1.17994996e-15 | E179: =D179/weight -> 25.81106672
A180: 7.6000004 | B180: 0.52815425 | C180: 1.649201649 | D180: 1.045239432e-15 | E180: =D180/weight -> 22.86431259
A181: 7.7000003 | B181: 0.5298782 | C181: 1.723951724 | D181: 1.096181324e-15 | E181: =D181/weight -> 23.97865185
A182: 7.8000002 | B182: 0.53182334 | C182: 1.945141945 | D182: 1.241366263e-15 | E182: =D182/weight -> 27.15453073
A183: 7.9000001 | B183: 0.53375441 | C183: 1.931071931 | D183: 1.236861791e-15 | E183: =D183/weight -> 27.0559967
A184: 8 | B184: 0.53565639 | C184: 1.901981902 | D184: 1.222570511e-15 | E184: =D184/weight -> 26.74337906
A185: 8.1000004 | B185: 0.53756666 | C185: 1.910262359 | D185: 1.232272027e-15 | E185: =D185/weight -> 26.95559693
A186: 8.1999998 | B186: 0.53949112 | C186: 1.924471547 | D186: 1.245882372e-15 | E186: =D186/weight -> 27.25331932
A187: 8.3000002 | B187: 0.54143411 | C187: 1.942982228 | D187: 1.262396224e-15 | E187: =D187/weight -> 27.61455509
A188: 8.4000006 | B188: 0.54340899 | C188: 1.974872101 | D188: 1.287795904e-15 | E188: =D188/weight -> 28.1701658
A189: 8.5 | B189: 0.54532397 | C189: 1.91499149 | D189: 1.253148914e-15 | E189: =D189/weight -> 27.41227284
A190: 8.6000004 | B190: 0.5471198 | C190: 1.795822817 | D190: 1.179036264e-15 | E190: =D190/weight -> 25.7910799
A191: 8.6999998 | B191: 0.54896653 | C191: 1.84674108 | D191: 1.216558851e-15 | E191: =D191/weight -> 26.61187572
A192: 8.8000002 | B192: 0.55095631 | C192: 1.989772041 | D192: 1.315532954e-15 | E192: =D192/weight -> 28.7769058
A193: 8.9000006 | B193: 0.55294597 | C193: 1.989652041 | D193: 1.320204094e-15 | E193: =D193/weight -> 28.87908565
A194: 9 | B194: 0.55493462 | C194: 1.988661932 | D194: 1.324292824e-15 | E194: =D194/weight -> 28.96852545
A195: 9.0997267 | B195: 0.55691785 | C195: 1.988665022 | D195: 1.329027658e-15 | E195: =D195/weight -> 29.07209858
A196: 9.2000008 | B196: 0.55881172 | C196: 1.888693092 | D196: 1.266508603e-15 | E196: =D196/weight -> 27.70451219
A197: 9.3000002 | B197: 0.56070042 | C197: 1.888711332 | D197: 1.270801485e-15 | E197: =D197/weight -> 27.79841775
A198: 9.4000006 | B198: 0.56277025 | C198: 2.069821721 | D198: =B198*C198*0.0000000000000012 -> 1.397800905e-15 | E198: =D198/weight -> 30.57649362
A199: 9.5 | B199: 0.56488156 | C199: 2.111322668 | D199: 1.431176691e-15 | E199: =D199/weight -> 31.30657936
A200: 9.6000004 | B200: 0.56677419 | C200: 1.89262243 | D200: 1.287227453e-15 | E200: =D200/weight -> 28.1577311
A201: 9.7000008 | B201: 0.56851095 | C201: 1.736753053 | D201: 1.184835754e-15 | E201: =D201/weight -> 25.91794206
... 1003 more rows

Sheet Sheet2
A1: Particle dynamics
A3: Sheet1 cell address that store data for F(x) dipendency
B4: Column | C4: start | D4: end
A5: x | B5: A | C5: 5 | D5: 1204
A6: force | B6: D
A8: Initial values
A9: initial position x | C9: 0 | D9: [cm]
A10: velosity v | C10: 0 | D10: [сm/s]
A11: saline density | C11: 1 | D11: g/cm3
A12: particle diametr | C12: 100 | D12: nm
A13: particle density | C13: 8.9 | D13: g/cm3
A14: Drag coefficient (sphere) | C14: 0.47
A15: particle weight | C15: =4/3*PI()*D_*D_*D_/8*C13*1000*9.81*1E-27 -> 4.57148855e-17 | D15: N
A17: Time step | C17: 5e-05 | D17: s
A19: time | B19: position, x [сm] | C19: Magnetic force [N] | D19: Drag force [N] | E19: Velosity [сm/s] | F19: Acceleration [сm/s/s]
A20: 0 | B20: =x_start -> 0 | E20: =v_start -> 0
A21: 5e-05 | B21: 3.864917332e-05 | C21: 7.204204403e-16 | D21: -1.102803544e-16 | E21: 0.7729834665 | F21: 154.5966933
A22: 0.00505 | B22: 0.009873764382 | C22: 7.192372398e-16 | D22: -7.19252427e-16 | E22: 1.97406658 | F22: -0.003259037567
A23: 0.01005 | B23: 0.01973998275 | C23: 7.180502975e-16 | D23: -7.180654847e-16 | E23: 1.972437061 | F23: -0.003259037556
A24: 0.01505 | B24: 0.02959805352 | C24: 7.168643353e-16 | D24: -7.168795225e-16 | E24: 1.970807543 | F24: -0.003259037545
A25: 0.02005 | B25: 0.0394479767 | C25: 7.156793534e-16 | D25: -7.156945406e-16 | E25: 1.969178024 | F25: -0.003259037533
A26: 0.02505 | B26: 0.04928975228 | C26: 7.144953516e-16 | D26: -7.145105388e-16 | E26: 1.967548505 | F26: -0.003259037522
A27: 0.03005 | B27: 0.05912338027 | C27: 7.1331233e-16 | D27: -7.133275172e-16 | E27: 1.965918986 | F27: -0.003259037511
A28: 0.03505 | B28: 0.06894886067 | C28: 7.121302886e-16 | D28: -7.121454758e-16 | E28: 1.964289468 | F28: -0.0032590375
A29: 0.04005 | B29: 0.07876619347 | C29: 7.109492273e-16 | D29: -7.109644145e-16 | E29: 1.962659949 | F29: -0.003259037489
A30: 0.04505 | B30: 0.08857537868 | C30: 7.097691463e-16 | D30: -7.097843335e-16 | E30: 1.96103043 | F30: -0.003259037477
A31: 0.05005 | B31: 0.09837641629 | C31: 7.085900454e-16 | D31: -7.086052327e-16 | E31: 1.959400911 | F31: -0.003259037466
A32: 0.05505 | B32: 0.1081720275 | C32: 7.083732072e-16 | D32: -7.083735392e-16 | E32: 1.959080551 | F32: -7.126419399e-05
A33: 0.06005 | B33: 0.1179673403 | C33: 7.083474393e-16 | D33: -7.083477714e-16 | E33: 1.959044919 | F33: -7.126419395e-05
A34: 0.06505 | B34: 0.1277624749 | C34: 7.08321672e-16 | D34: -7.083220041e-16 | E34: 1.959009287 | F34: -7.126419399e-05
A35: 0.07005 | B35: 0.1375574314 | C35: 7.082959051e-16 | D35: -7.082962372e-16 | E35: 1.958973655 | F35: -7.126419399e-05
A36: 0.07505 | B36: 0.1473522097 | C36: 7.082701387e-16 | D36: -7.082704708e-16 | E36: 1.958938023 | F36: -7.126419399e-05
A37: 0.08005 | B37: 0.1571468099 | C37: 7.082443728e-16 | D37: -7.082447049e-16 | E37: 1.958902391 | F37: -7.126419397e-05
A38: 0.08505 | B38: 0.1669412318 | C38: 7.082186073e-16 | D38: -7.082189394e-16 | E38: 1.958866759 | F38: -7.126419397e-05
A39: 0.09005 | B39: 0.1767354757 | C39: 7.081928423e-16 | D39: -7.081931744e-16 | E39: 1.958831127 | F39: -7.126419399e-05
A40: 0.09505 | B40: 0.1865295413 | C40: 7.081670778e-16 | D40: -7.081674099e-16 | E40: 1.958795495 | F40: -7.126419395e-05
A41: 0.10005 | B41: 0.1963234288 | C41: 7.081413138e-16 | D41: -7.081416459e-16 | E41: 1.958759863 | F41: -7.126419395e-05
A42: 0.10505 | B42: 0.206117692 | C42: 7.083786012e-16 | D42: -7.08373505e-16 | E42: 1.959080504 | F42: 0.00109360809
A43: 0.11005 | B43: 0.2159144752 | C43: 7.087740883e-16 | D43: -7.087689921e-16 | E43: 1.959627308 | F43: 0.001093608089
A44: 0.11505 | B44: 0.2257139924 | C44: 7.091696858e-16 | D44: -7.091645896e-16 | E44: 1.960174112 | F44: 0.001093608089
A45: 0.12005 | B45: 0.2355162436 | C45: 7.095653937e-16 | D45: -7.095602974e-16 | E45: 1.960720916 | F45: 0.001093608088
A46: 0.12505 | B46: 0.2453212289 | C46: 7.099612119e-16 | D46: -7.099561157e-16 | E46: 1.96126772 | F46: 0.001093608088
A47: 0.13005 | B47: 0.2551289482 | C47: 7.103571405e-16 | D47: -7.103520443e-16 | E47: 1.961814524 | F47: 0.001093608088
A48: 0.13505 | B48: 0.2649394015 | C48: 7.107531795e-16 | D48: -7.107480832e-16 | E48: 1.962361328 | F48: 0.001093608087
A49: 0.14005 | B49: 0.2747525888 | C49: 7.111493288e-16 | D49: -7.111442326e-16 | E49: 1.962908132 | F49: 0.001093608087
A50: 0.14505 | B50: 0.2845685102 | C50: 7.115455885e-16 | D50: -7.115404923e-16 | E50: 1.963454936 | F50: 0.001093608086
A51: 0.15005 | B51: 0.2943871655 | C51: 7.119419586e-16 | D51: -7.119368624e-16 | E51: 1.96400174 | F51: 0.001093608086
A52: 0.15505 | B52: 0.3042084869 | C52: 7.122906955e-16 | D52: -7.122870314e-16 | E52: 1.964484682 | F52: 0.0007862858186
A53: 0.16005 | B53: 0.314031903 | C53: 7.125758172e-16 | D53: -7.125721531e-16 | E53: 1.964877825 | F53: 0.0007862858184
A54: 0.16505 | B54: 0.3238572848 | C54: 7.128609959e-16 | D54: -7.128573318e-16 | E54: 1.965270968 | F54: 0.0007862858183
A55: 0.17005 | B55: 0.3336846324 | C55: 7.131462318e-16 | D55: -7.131425676e-16 | E55: 1.965664111 | F55: 0.0007862858182
A56: 0.17505 | B56: 0.3435139456 | C56: 7.134315246e-16 | D56: -7.134278605e-16 | E56: 1.966057254 | F56: 0.0007862858179
A57: 0.18005 | B57: 0.3533452246 | C57: 7.137168746e-16 | D57: -7.137132104e-16 | E57: 1.966450397 | F57: 0.0007862858178
A58: 0.18505 | B58: 0.3631784692 | C58: 7.140022815e-16 | D58: -7.139986174e-16 | E58: 1.96684354 | F58: 0.0007862858177
A59: 0.19005 | B59: 0.3730136796 | C59: 7.142877456e-16 | D59: -7.142840815e-16 | E59: 1.967236682 | F59: 0.0007862858175
A60: 0.19505 | B60: 0.3828508557 | C60: 7.145732667e-16 | D60: -7.145696026e-16 | E60: 1.967629825 | F60: 0.0007862858174
A61: 0.20005 | B61: 0.3926899975 | C61: 7.148588448e-16 | D61: -7.148551807e-16 | E61: 1.968022968 | F61: 0.0007862858172
A62: 0.20505 | B62: 0.4025316108 | C62: 7.157522896e-16 | D62: -7.157183151e-16 | E62: 1.96921073 | F62: 0.007290616078
A63: 0.21005 | B63: 0.4123868688 | C63: 7.184045487e-16 | D63: -7.183705742e-16 | E63: 1.972856038 | F63: 0.007290615953
A64: 0.21505 | B64: 0.4222603534 | C64: 7.21061713e-16 | D64: -7.210277385e-16 | E64: 1.976501346 | F64: 0.007290615829
A65: 0.22005 | B65: 0.4321520645 | C65: 7.237237824e-16 | D65: -7.236898079e-16 | E65: 1.980146654 | F65: 0.007290615705
A66: 0.22505 | B66: 0.4420620022 | C66: 7.263907569e-16 | D66: -7.263567825e-16 | E66: 1.983791962 | F66: 0.007290615582
A67: 0.23005 | B67: 0.4519901664 | C67: 7.290626366e-16 | D67: -7.290286622e-16 | E67: 1.98743727 | F67: 0.007290615459
A68: 0.23505 | B68: 0.4619365572 | C68: 7.317394215e-16 | D68: -7.31705447e-16 | E68: 1.991082578 | F68: 0.007290615336
A69: 0.24005 | B69: 0.4719011745 | C69: 7.344211115e-16 | D69: -7.34387137e-16 | E69: 1.994727885 | F69: 0.007290615214
A70: 0.24505 | B70: 0.4818840183 | C70: 7.371077066e-16 | D70: -7.370737321e-16 | E70: 1.998373193 | F70: 0.007290615093
A71: 0.25005 | B71: 0.4918850887 | C71: 7.397992069e-16 | D71: -7.397652324e-16 | E71: 2.0020185 | F71: 0.007290614972
A72: 0.25505 | B72: 0.5019039145 | C72: 7.416990499e-16 | D72: -7.417178891e-16 | E72: 2.004658986 | F72: -0.004042736617
A73: 0.26005 | B73: 0.5119221055 | C73: 7.402040034e-16 | D73: -7.402228427e-16 | E73: 2.002637617 | F73: -0.004042736596
A74: 0.26505 | B74: 0.5219301896 | C74: 7.387104653e-16 | D74: -7.387293045e-16 | E74: 2.000616249 | F74: -0.004042736576
A75: 0.27005 | B75: 0.5319281669 | C75: 7.372184354e-16 | D75: -7.372372747e-16 | E75: 1.998594881 | F75: -0.004042736555
A76: 0.27505 | B76: 0.5419160374 | C76: 7.357279138e-16 | D76: -7.35746753e-16 | E76: 1.996573513 | F76: -0.004042736535
A77: 0.28005 | B77: 0.551893801 | C77: 7.342389004e-16 | D77: -7.342577397e-16 | E77: 1.994552144 | F77: -0.004042736514
A78: 0.28505 | B78: 0.5618614577 | C78: 7.327513954e-16 | D78: -7.327702346e-16 | E78: 1.992530776 | F78: -0.004042736493
A79: 0.29005 | B79: 0.5718190077 | C79: 7.312653986e-16 | D79: -7.312842379e-16 | E79: 1.990509408 | F79: -0.004042736472
A80: 0.29505 | B80: 0.5817664508 | C80: 7.297809101e-16 | D80: -7.297997494e-16 | E80: 1.98848804 | F80: -0.004042736451
A81: 0.30005 | B81: 0.591703787 | C81: 7.282979298e-16 | D81: -7.283167691e-16 | E81: 1.986466671 | F81: -0.00404273643
A82: 0.30505 | B82: 0.6016311422 | C82: 7.270631405e-16 | D82: -7.270628849e-16 | E82: 1.984755965 | F82: 5.483981691e-05
A83: 0.31005 | B83: 0.6115549913 | C83: 7.270832297e-16 | D83: -7.270829742e-16 | E83: 1.984783385 | F83: 5.483981718e-05
A84: 0.31505 | B84: 0.6214789775 | C84: 7.271033193e-16 | D84: -7.271030637e-16 | E84: 1.984810805 | F84: 5.483981718e-05
A85: 0.32005 | B85: 0.6314031007 | C85: 7.271234091e-16 | D85: -7.271231535e-16 | E85: 1.984838225 | F85: 5.483981718e-05
A86: 0.32505 | B86: 0.6413273611 | C86: 7.271434992e-16 | D86: -7.271432436e-16 | E86: 1.984865645 | F86: 5.483981716e-05
A87: 0.33005 | B87: 0.6512517585 | C87: 7.271635895e-16 | D87: -7.27163334e-16 | E87: 1.984893065 | F87: 5.483981714e-05
A88: 0.33505 | B88: 0.6611762931 | C88: 7.271836802e-16 | D88: -7.271834246e-16 | E88: 1.984920484 | F88: 5.483981718e-05
A89: 0.34005 | B89: 0.6711009648 | C89: 7.272037711e-16 | D89: -7.272035155e-16 | E89: 1.984947904 | F89: 5.483981716e-05
A90: 0.34505 | B90: 0.6810257735 | C90: 7.272238623e-16 | D90: -7.272236067e-16 | E90: 1.984975324 | F90: 5.483981718e-05
A91: 0.35005 | B91: 0.6909507194 | C91: 7.272439538e-16 | D91: -7.272436982e-16 | E91: 1.985002744 | F91: 5.483981716e-05
A92: 0.35505 | B92: 0.7008758127 | C92: 7.273051065e-16 | D92: -7.272989312e-16 | E92: 1.985078122 | F92: 0.001325157104
A93: 0.36005 | B93: 0.7108028763 | C93: 7.27790706e-16 | D93: -7.277845307e-16 | E93: 1.985740705 | F93: 0.001325166268
A94: 0.36505 | B94: 0.7207332528 | C94: 7.282764675e-16 | D94: -7.282702922e-16 | E94: 1.986403288 | F94: 0.001325166268
A95: 0.37005 | B95: 0.7306669423 | C95: 7.28762391e-16 | D95: -7.287562157e-16 | E95: 1.987065871 | F95: 0.001325166267
A96: 0.37505 | B96: 0.7406039447 | C96: 7.292484767e-16 | D96: -7.292423014e-16 | E96: 1.987728454 | F96: 0.001325166266
A97: 0.38005 | B97: 0.75054426 | C97: 7.297347244e-16 | D97: -7.297285491e-16 | E97: 1.988391037 | F97: 0.001325166265
A98: 0.38505 | B98: 0.7604878882 | C98: 7.302211341e-16 | D98: -7.302149588e-16 | E98: 1.98905362 | F98: 0.001325166265
A99: 0.39005 | B99: 0.7704348293 | C99: 7.307077059e-16 | D99: -7.307015306e-16 | E99: 1.989716204 | F99: 0.001325166264
A100: 0.39505 | B100: 0.7803850833 | C100: 7.311944398e-16 | D100: -7.311882644e-16 | E100: 1.990378787 | F100: 0.001325166263
A101: 0.40005 | B101: 0.7903386503 | C101: 7.316813357e-16 | D101: -7.316751604e-16 | E101: 1.99104137 | F101: 0.001325166262
A102: 0.40505 | B102: 0.8002955382 | C102: 7.323109675e-16 | D102: -7.322444978e-16 | E102: 1.991815862 | F102: 0.01374485568
A103: 0.41005 | B103: 0.8102727966 | C103: 7.376153451e-16 | D103: -7.375482282e-16 | E103: 1.999016322 | F103: 0.01440267966
A104: 0.41505 | B104: 0.8202860616 | C104: 7.429388656e-16 | D104: -7.428717487e-16 | E104: 2.006217662 | F104: 0.01440267872
A105: 0.42005 | B105: 0.8303353332 | C105: 7.482815289e-16 | D105: -7.48214412e-16 | E105: 2.013419001 | F105: 0.0144026778
A106: 0.42505 | B106: 0.8404206116 | C106: 7.53643335e-16 | D106: -7.535762181e-16 | E106: 2.02062034 | F106: 0.01440267688
A107: 0.43005 | B107: 0.8505418967 | C107: 7.59024284e-16 | D107: -7.589571671e-16 | E107: 2.027821678 | F107: 0.01440267597
A108: 0.43505 | B108: 0.8606991885 | C108: 7.644243759e-16 | D108: -7.64357259e-16 | E108: 2.035023016 | F108: 0.01440267506
A109: 0.44005 | B109: 0.8708924869 | C109: 7.698436105e-16 | D109: -7.697764937e-16 | E109: 2.042224353 | F109: 0.01440267417
A110: 0.44505 | B110: 0.8811217921 | C110: 7.75281988e-16 | D110: -7.752148712e-16 | E110: 2.04942569 | F110: 0.01440267327
A111: 0.45005 | B111: 0.8913871039 | C111: 7.807395084e-16 | D111: -7.806723915e-16 | E111: 2.056627026 | F111: 0.01440267239
A112: 0.45505 | B112: 0.9016878276 | C112: 7.850054802e-16 | D112: -7.850289024e-16 | E112: 2.062357505 | F112: -0.005026206457
A113: 0.46005 | B113: 0.9119932696 | C113: 7.830934386e-16 | D113: -7.831168609e-16 | E113: 2.059844402 | F113: -0.00502620642
A114: 0.46505 | B114: 0.922286146 | C114: 7.811837284e-16 | D114: -7.812071507e-16 | E114: 2.057331298 | F114: -0.005026206382
A115: 0.47005 | B115: 0.9325664569 | C115: 7.792763496e-16 | D115: -7.792997718e-16 | E115: 2.054818195 | F115: -0.005026206345
A116: 0.47505 | B116: 0.9428342023 | C116: 7.773713021e-16 | D116: -7.773947244e-16 | E116: 2.052305092 | F116: -0.005026206307
A117: 0.48005 | B117: 0.9530893822 | C117: 7.75468586e-16 | D117: -7.754920083e-16 | E117: 2.049791989 | F117: -0.005026206269
A118: 0.48505 | B118: 0.9633319965 | C118: 7.735682013e-16 | D118: -7.735916235e-16 | E118: 2.047278886 | F118: -0.005026206231
A119: 0.49005 | B119: 0.9735620454 | C119: 7.716701479e-16 | D119: -7.716935702e-16 | E119: 2.044765783 | F119: -0.005026206194
A120: 0.49505 | B120: 0.9837795287 | C120: 7.697744259e-16 | D120: -7.697978482e-16 | E120: 2.04225268 | F120: -0.005026206156
A121: 0.50005 | B121: 0.9939844465 | C121: 7.678810353e-16 | D121: -7.679044576e-16 | E121: 2.039739577 | F121: -0.005026206117
A122: 0.50505 | B122: 1.004178296 | C122: 7.671298894e-16 | D122: -7.671188617e-16 | E122: 2.038695943 | F122: 0.002366435773
A123: 0.51005 | B123: 1.014374764 | C123: 7.680205883e-16 | D123: -7.680095607e-16 | E123: 2.039879161 | F123: 0.002366435769
A124: 0.51505 | B124: 1.024577147 | C124: 7.68911804e-16 | D124: -7.689007764e-16 | E124: 2.041062379 | F124: 0.002366435765
A125: 0.52005 | B125: 1.034785447 | C125: 7.698035366e-16 | D125: -7.697925089e-16 | E125: 2.042245597 | F125: 0.002366435761
A126: 0.52505 | B126: 1.044999662 | C126: 7.706957859e-16 | D126: -7.706847582e-16 | E126: 2.043428815 | F126: 0.002366435758
A127: 0.53005 | B127: 1.055219794 | C127: 7.71588552e-16 | D127: -7.715775243e-16 | E127: 2.044612033 | F127: 0.002366435754
A128: 0.53505 | B128: 1.065445842 | C128: 7.724818349e-16 | D128: -7.724708072e-16 | E128: 2.045795251 | F128: 0.00236643575
A129: 0.54005 | B129: 1.075677806 | C129: 7.733756346e-16 | D129: -7.733646069e-16 | E129: 2.046978469 | F129: 0.002366435746
A130: 0.54505 | B130: 1.085915686 | C130: 7.742699511e-16 | D130: -7.742589234e-16 | E130: 2.048161687 | F130: 0.002366435742
A131: 0.55005 | B131: 1.096159482 | C131: 7.751647843e-16 | D131: -7.751537567e-16 | E131: 2.049344904 | F131: 0.002366435738
A132: 0.55505 | B132: 1.106398801 | C132: 7.709161198e-16 | D132: -7.710065593e-16 | E132: 2.04385539 | F132: -0.01940749963
A133: 0.56005 | B133: 1.116593576 | C133: 7.636123802e-16 | D133: -7.637028197e-16 | E133: 2.03415164 | F133: -0.01940749743
A134: 0.56505 | B134: 1.126739832 | C134: 7.563434004e-16 | D134: -7.564338399e-16 | E134: 2.024447892 | F134: -0.01940749522
A135: 0.57005 | B135: 1.13683757 | C135: 7.491091805e-16 | D135: -7.491996199e-16 | E135: 2.014744145 | F135: -0.01940749298
A136: 0.57505 | B136: 1.146886788 | C136: 7.419097202e-16 | D136: -7.420001597e-16 | E136: 2.005040399 | F136: -0.01940749071
A137: 0.58005 | B137: 1.156887489 | C137: 7.347450198e-16 | D137: -7.348354593e-16 | E137: 1.995336654 | F137: -0.01940748843
A138: 0.58505 | B138: 1.16683967 | C138: 7.276150792e-16 | D138: -7.277055186e-16 | E138: 1.985632911 | F138: -0.01940748613
A139: 0.59005 | B139: 1.176743332 | C139: 7.205198983e-16 | D139: -7.206103377e-16 | E139: 1.975929168 | F139: -0.0194074838
A140: 0.59505 | B140: 1.186598476 | C140: 7.134594772e-16 | D140: -7.135499166e-16 | E140: 1.966225427 | F140: -0.01940748145
A141: 0.60005 | B141: 1.196405102 | C141: 7.064338159e-16 | D141: -7.065242553e-16 | E141: 1.956521687 | F141: -0.01940747907
A142: 0.60505 | B142: 1.206179944 | C142: 7.072686319e-16 | D142: -7.071989619e-16 | E142: 1.95745567 | F142: 0.01495055865
A143: 0.61005 | B143: 1.215986098 | C143: 7.126803548e-16 | D143: -7.126106848e-16 | E143: 1.964930949 | F143: 0.01495055756
A144: 0.61505 | B144: 1.225829628 | C144: 7.181127046e-16 | D144: -7.180430346e-16 | E144: 1.972406227 | F144: 0.01495055649
A145: 0.62005 | B145: 1.235710534 | C145: 7.235656814e-16 | D145: -7.234960113e-16 | E145: 1.979881505 | F145: 0.01495055542
A146: 0.62505 | B146: 1.245628816 | C146: 7.29039285e-16 | D146: -7.28969615e-16 | E146: 1.987356783 | F146: 0.01495055435
A147: 0.63005 | B147: 1.255584475 | C147: 7.345335156e-16 | D147: -7.344638455e-16 | E147: 1.99483206 | F147: 0.0149505533
A148: 0.63505 | B148: 1.265577511 | C148: 7.40048373e-16 | D148: -7.39978703e-16 | E148: 2.002307336 | F148: 0.01495055225
A149: 0.64005 | B149: 1.275607922 | C149: 7.455838574e-16 | D149: -7.455141874e-16 | E149: 2.009782612 | F149: 0.01495055122
A150: 0.64505 | B150: 1.285675711 | C150: 7.511399687e-16 | D150: -7.510702987e-16 | E150: 2.017257887 | F150: 0.01495055019
A151: 0.65005 | B151: 1.295780875 | C151: 7.567167068e-16 | D151: -7.566470368e-16 | E151: 2.024733162 | F151: 0.01495054916
A152: 0.65505 | B152: 1.305923715 | C152: 7.624718053e-16 | D152: -7.623987771e-16 | E152: 2.032414215 | F152: 0.01567118773
A153: 0.66005 | B153: 1.316105571 | C153: 7.683617094e-16 | D153: -7.682886813e-16 | E153: 2.040249808 | F153: 0.01567118657
A154: 0.66505 | B154: 1.326326605 | C154: 7.742742769e-16 | D154: -7.742012487e-16 | E154: 2.048085401 | F154: 0.01567118542
A155: 0.67005 | B155: 1.336586817 | C155: 7.802095077e-16 | D155: -7.801364795e-16 | E155: 2.055920994 | F155: 0.01567118428
A156: 0.67505 | B156: 1.346886207 | C156: 7.861674017e-16 | D156: -7.860943736e-16 | E156: 2.063756585 | F156: 0.01567118314
A157: 0.68005 | B157: 1.357224774 | C157: 7.921479591e-16 | D157: -7.920749309e-16 | E157: 2.071592177 | F157: 0.01567118202
A158: 0.68505 | B158: 1.36760252 | C158: 7.981511798e-16 | D158: -7.980781516e-16 | E158: 2.079427767 | F158: 0.0156711809
A159: 0.69005 | B159: 1.378019444 | C159: 8.041770637e-16 | D159: -8.041040356e-16 | E159: 2.087263358 | F159: 0.01567117979
A160: 0.69505 | B160: 1.388475545 | C160: 8.10225611e-16 | D160: -8.101525828e-16 | E160: 2.095098947 | F160: 0.01567117869
A161: 0.70005 | B161: 1.398970825 | C161: 8.162968215e-16 | D161: -8.162237934e-16 | E161: 2.102934536 | F161: 0.0156711776
A162: 0.70505 | B162: 1.409479112 | C162: 8.132327685e-16 | D162: -8.132815057e-16 | E162: 2.099140831 | F162: -0.01045856347
A163: 0.71005 | B163: 1.419961612 | C163: 8.091857977e-16 | D163: -8.092345349e-16 | E163: 2.09391155 | F163: -0.01045856315
A164: 0.71505 | B164: 1.430417966 | C164: 8.051489213e-16 | D164: -8.051976585e-16 | E164: 2.088682268 | F164: -0.01045856282
A165: 0.72005 | B165: 1.440848173 | C165: 8.011221392e-16 | D165: -8.011708764e-16 | E165: 2.083452987 | F165: -0.01045856249
A166: 0.72505 | B166: 1.451252234 | C166: 7.971054514e-16 | D166: -7.971541886e-16 | E166: 2.078223706 | F166: -0.01045856216
A167: 0.73005 | B167: 1.461630149 | C167: 7.93098858e-16 | D167: -7.931475952e-16 | E167: 2.072994425 | F167: -0.01045856183
A168: 0.73505 | B168: 1.471981917 | C168: 7.891023588e-16 | D168: -7.89151096e-16 | E168: 2.067765144 | F168: -0.0104585615
A169: 0.74005 | B169: 1.482307539 | C169: 7.85115954e-16 | D169: -7.851646912e-16 | E169: 2.062535863 | F169: -0.01045856116
A170: 0.74505 | B170: 1.492607014 | C170: 7.811396435e-16 | D170: -7.811883807e-16 | E170: 2.057306583 | F170: -0.01045856082
A171: 0.75005 | B171: 1.502881164 | C171: 7.781072912e-16 | D171: -7.781150955e-16 | E171: 2.053255754 | F171: -0.001674732842
A172: 0.75505 | B172: 1.513145328 | C172: 7.77472753e-16 | D172: -7.774805573e-16 | E172: 2.052418388 | F172: -0.00167473284
A173: 0.76005 | B173: 1.523405306 | C173: 7.768384736e-16 | D173: -7.768462779e-16 | E173: 2.051581021 | F173: -0.001674732839
A174: 0.76505 | B174: 1.533661096 | C174: 7.762044531e-16 | D174: -7.762122574e-16 | E174: 2.050743655 | F174: -0.001674732837
A175: 0.77005 | B175: 1.5439127 | C175: 7.755706914e-16 | D175: -7.755784957e-16 | E175: 2.049906288 | F175: -0.001674732836
A176: 0.77505 | B176: 1.554160117 | C176: 7.749371886e-16 | D176: -7.749449929e-16 | E176: 2.049068922 | F176: -0.001674732835
A177: 0.78005 | B177: 1.564403348 | C177: 7.743039446e-16 | D177: -7.743117489e-16 | E177: 2.048231555 | F177: -0.001674732833
A178: 0.78505 | B178: 1.574642391 | C178: 7.736709594e-16 | D178: -7.736787637e-16 | E178: 2.047394189 | F178: -0.001674732832
A179: 0.79005 | B179: 1.584877248 | C179: 7.73038233e-16 | D179: -7.730460373e-16 | E179: 2.046556823 | F179: -0.00167473283
A180: 0.79505 | B180: 1.595107917 | C180: 7.724057655e-16 | D180: -7.724135698e-16 | E180: 2.045719456 | F180: -0.001674732829
A181: 0.80005 | B181: 1.605335289 | C181: 7.723026529e-16 | D181: -7.722979365e-16 | E181: 2.045566324 | F181: 0.00101210689
A182: 0.80505 | B182: 1.615564398 | C182: 7.726848183e-16 | D182: -7.726801019e-16 | E182: 2.046072378 | F182: 0.00101210689
A183: 0.81005 | B183: 1.625796038 | C183: 7.730670783e-16 | D183: -7.730623619e-16 | E183: 2.046578431 | F183: 0.00101210689
A184: 0.81505 | B184: 1.636030208 | C184: 7.734494328e-16 | D184: -7.734447164e-16 | E184: 2.047084485 | F184: 0.001012106889
A185: 0.82005 | B185: 1.646266908 | C185: 7.738318819e-16 | D185: -7.738271654e-16 | E185: 2.047590538 | F185: 0.001012106889
A186: 0.82505 | B186: 1.656506139 | C186: 7.742144254e-16 | D186: -7.74209709e-16 | E186: 2.048096592 | F186: 0.001012106889
A187: 0.83005 | B187: 1.666747899 | C187: 7.745970635e-16 | D187: -7.745923471e-16 | E187: 2.048602645 | F187: 0.001012106888
A188: 0.83505 | B188: 1.67699219 | C188: 7.749797961e-16 | D188: -7.749750797e-16 | E188: 2.049108698 | F188: 0.001012106888
A189: 0.84005 | B189: 1.687239012 | C189: 7.753626233e-16 | D189: -7.753579069e-16 | E189: 2.049614752 | F189: 0.001012106888
A190: 0.84505 | B190: 1.697488363 | C190: 7.75745545e-16 | D190: -7.757408286e-16 | E190: 2.050120805 | F190: 0.001012106887
A191: 0.85005 | B191: 1.70774681 | C191: 7.788155646e-16 | D191: -7.787670633e-16 | E191: 2.054115766 | F191: 0.01040793696
A192: 0.85505 | B192: 1.718030529 | C192: 7.827664742e-16 | D192: -7.827179729e-16 | E192: 2.059319734 | F192: 0.01040793662
A193: 0.86005 | B193: 1.728340268 | C193: 7.867273803e-16 | D193: -7.86678879e-16 | E193: 2.064523702 | F193: 0.01040793629
A194: 0.86505 | B194: 1.738676026 | C194: 7.90698283e-16 | D194: -7.906497817e-16 | E194: 2.069727671 | F194: 0.01040793596
A195: 0.87005 | B195: 1.749037805 | C195: 7.946791823e-16 | D195: -7.94630681e-16 | E195: 2.074931638 | F195: 0.01040793564
A196: 0.87505 | B196: 1.759425603 | C196: 7.986700781e-16 | D196: -7.986215768e-16 | E196: 2.080135606 | F196: 0.01040793531
A197: 0.88005 | B197: 1.769839421 | C197: 8.026709706e-16 | D197: -8.026224693e-16 | E197: 2.085339574 | F197: 0.01040793498
A198: 0.88505 | B198: 1.780279259 | C198: 8.066818596e-16 | D198: -8.066333583e-16 | E198: 2.090543541 | F198: 0.01040793466
A199: 0.89005 | B199: 1.790745117 | C199: 8.107027452e-16 | D199: -8.106542439e-16 | E199: 2.095747508 | F199: 0.01040793434
A200: 0.89505 | B200: 1.801236802 | C200: 8.141609253e-16 | D200: -8.141708826e-16 | E200: 2.100288292 | F200: -0.002136738254
A201: 0.90005 | B201: 1.811735546 | C201: 8.133328354e-16 | D201: -8.133427926e-16 | E201: 2.099219923 | F201: -0.002136738332
A202: 0.90505 | B202: 1.822228948 | C202: 8.125051667e-16 | D202: -8.12515124e-16 | E202: 2.098151554 | F202: -0.002136738329
A203: 0.91005 | B203: 1.832717008 | C203: 8.116779195e-16 | D203: -8.116878767e-16 | E203: 2.097083185 | F203: -0.002136738326
A204: 0.91505 | B204: 1.843199726 | C204: 8.108510935e-16 | D204: -8.108610508e-16 | E204: 2.096014816 | F204: -0.002136738323
... 816 more rows
